bitfinex-derivatives/quotes_ETHF0:USTF0_20250114
["timestamp","ask_amount","ask_price","bid_price","bid_amount"]
[1736832552968,0.9677,3170.7,3170.3,1.6938]
[1736832553165,1.19500474,3170.5,3170.3,1.6938]
[1736832553365,1.51055474,3170.5,3170.3,1.6938]
[1736832553964,1.19500474,3170.5,3170.3,1.6938]
[1736832554565,2.47823474,3170.7,3170.3,1.6938]
[1736832558065,2.16270474,3170.7,3170.3,1.6938]
[1736832558271,0.4712,3170.7,3170.3,1.6938]
[1736832558465,0.4712,3170.7,3170.4,0.31555]
[1736832560166,0.4712,3170.7,3170.3,2.00936]
[1736832561869,0.4712,3170.7,3170.4,0.31555]
[1736832563077,3.2078,3170.9,3170.6,1.51053474]
[1736832563278,1.19500474,3171.1,3170.7,1.4505]
[1736832563477,1.19500474,3171.1,3170.7,1.76603]
[1736832563677,1.19500474,3171.1,3170.7,1.4505]
[1736832563877,1.19500474,3170.9,3170.7,1.4505]
[1736832566671,1.19500474,3170.9,3170.7,1.76603]
[1736832566877,1.99559474,3171.1,3170.7,1.76603]
[1736832567279,1.68010474,3171.1,3170.7,1.76603]
[1736832567480,1.68010474,3171.1,3170.7,1.76602]
[1736832567978,1.68010474,3171.1,3170.8,1.51051474]
[1736832570183,0.77648,3171.2,3171.0,1.19500474]
[1736832570184,0.461,3171.2,3171.0,1.19500474]
[1736832570382,0.461,3171.2,3171.1,0.4731]
[1736832572688,0.9572,3171.2,3171.1,0.4731]
[1736832573375,4.71825474,3171.5,3171.1,0.78859]
[1736832573586,0.31546,3171.4,3171.1,0.4731]
[1736832573782,4.40280474,3171.5,3171.1,0.4731]
[1736832573980,0.31547,3171.4,3171.1,0.4731]
[1736832574278,1.51047474,3171.3,3171.1,0.4731]
[1736832574674,4.71825474,3171.5,3171.1,1.98359474]
[1736832574880,4.71825474,3171.5,3171.1,1.66810474]
[1736832574881,0.31546,3171.4,3171.1,1.66810474]
[1736832580689,0.31546,3171.4,3171.1,0.4731]
[1736832580889,0.31546,3171.4,3171.1,1.66810474]
[1736832581380,4.40280474,3171.5,3171.1,0.4731]
[1736832581580,4.40280474,3171.5,3171.0,1.241]
[1736832582786,0.31547,3171.3,3171.0,1.241]
[1736832583088,0.465,3171.2,3171.0,1.241]
[1736832583883,0.78048,3171.2,3171.0,1.241]
[1736832584486,0.465,3171.2,3171.0,1.241]
[1736832586494,0.465,3171.2,3171.1,1.19500474]
[1736832587585,0.31546,3171.4,3171.1,1.19500474]
[1736832587785,0.31546,3171.4,3171.2,0.4694]
[1736832588090,0.31546,3171.4,3171.2,0.927]
[1736832588487,0.4774,3171.8,3171.5,0.31544]
[1736832588694,0.9441,3172.2,3171.7,1.19500474]
[1736832588889,0.79279,3172.1,3171.9,1.19500474]
[1736832589394,0.3154,3172.0,3171.8,0.4576]
[1736832589586,0.4774,3172.1,3171.8,0.4576]
[1736832589787,0.79279,3172.1,3171.8,0.4576]
[1736832591386,1.19500474,3172.0,3171.8,0.4576]
[1736832591589,1.51040474,3172.0,3171.8,0.4576]
[1736832591791,0.79279,3172.1,3171.8,0.4576]
[1736832593696,0.79279,3172.1,3171.8,0.77301]
[1736832595990,0.79279,3172.1,3171.8,1.23391]
[1736832596994,4.40280474,3172.2,3171.9,0.31541]
[1736832597195,4.40280474,3172.2,3171.8,2.11350474]
[1736832597395,3.2078,3172.2,3172.0,0.31539]
[1736832597596,3.2078,3172.2,3172.0,1.19500474]
[1736832598294,3.2078,3172.2,3172.0,1.51039474]
[1736832598696,3.52318,3172.2,3172.0,1.19500474]
[1736832598990,3.2078,3172.2,3172.0,1.19500474]
[1736832599192,3.2078,3172.2,3172.1,0.31539]
[1736832599894,3.2078,3172.2,3172.0,1.51039474]
[1736832601196,3.52318,3172.2,3172.0,1.51039474]
[1736832601399,3.2078,3172.2,3172.0,1.51039474]
[1736832603101,3.2078,3172.2,3172.0,1.19500474]
[1736832603397,0.29597349,3172.8,3172.0,2.39000948]
[1736832603592,3.98019,3173.1,3172.8,0.31531]
[1736832603792,3.98019,3173.1,3173.0,1.19500474]
[1736832603998,3.98019,3173.1,3172.9,0.4637]
[1736832604600,0.3153,3173.0,3172.9,0.4637]
[1736832606090,3.6649,3173.1,3172.9,0.4637]
[1736832606291,1.24357,3173.4,3173.0,0.31529]
[1736832606602,1.24356,3173.4,3173.0,2.83609959]
[1736832606805,0.9283,3173.4,3172.9,0.779]
[1736832607105,0.79286,3173.4,3172.9,0.4637]
[1736832607298,0.79286,3173.4,3173.0,0.3153]
[1736832607698,0.3153,3173.0,3172.9,0.4637]
[1736832607899,0.31532,3172.8,3172.7,3.2078]
[1736832608499,3.00090959,3173.0,3172.3,1.241]
[1736832608815,0.31534,3172.6,3172.3,1.24]
[1736832609196,0.31535,3172.5,3172.3,1.24]
[1736832609406,0.31534,3172.6,3172.3,1.24]
[1736832609997,4.1251,3172.7,3172.3,1.24]
[1736832610198,0.31534,3172.6,3172.3,1.24]
[1736832610801,6.64590959,3172.7,3172.3,1.24]
[1736832611003,0.31536,3172.4,3172.3,1.24]
[1736832611704,0.4749,3172.5,3171.8,3.2078]
[1736832611905,2.52080959,3172.4,3171.8,0.9066]
[1736832612207,3.2078,3172.3,3171.8,0.9066]
[1736832612411,0.31539,3172.1,3171.8,0.9066]
[1736832612704,3.2078,3172.3,3171.8,0.9066]
[1736832612705,0.461,3172.2,3171.8,0.9066]
[1736832613306,0.3154,3172.0,3171.8,0.9066]
[1736832613519,0.461,3172.2,3171.8,0.9066]
[1736832613811,0.31539,3172.1,3171.8,0.9066]
[1736832614106,0.77638,3172.2,3171.8,0.9066]
[1736832615803,0.461,3172.2,3171.8,0.9066]
[1736832616011,0.31539,3172.1,3171.8,0.9066]
[1736832616607,0.461,3172.2,3171.8,0.9066]
[1736832617514,0.77638,3172.2,3171.8,0.9066]
[1736832617711,0.461,3172.2,3171.8,0.9066]
[1736832618204,0.31539,3172.1,3171.8,0.9066]
[1736832618609,0.461,3172.2,3171.8,0.9066]
[1736832619011,0.77638,3172.2,3171.8,0.9066]
[1736832619511,0.31539,3172.1,3171.8,0.9066]
[1736832620310,0.77638,3172.2,3171.8,0.9066]
[1736832623616,0.31539,3172.1,3171.8,0.9066]
[1736832623913,0.3154,3172.0,3171.8,0.9066]
[1736832624117,0.31539,3172.1,3171.8,0.9066]
[1736832624318,0.3154,3172.0,3171.8,0.9066]
[1736832624618,0.31539,3172.1,3171.8,0.9066]
[1736832625016,3.6856,3172.3,3171.8,0.9066]
[1736832625209,3.6856,3172.3,3172.0,2.52080959]
[1736832625411,3.2078,3172.3,3172.1,0.76728]
[1736832626009,3.2078,3172.3,3172.1,0.4519]
[1736832626219,4.1607,3172.7,3172.1,0.4519]
[1736832626421,0.31535,3172.5,3172.1,0.4519]
[1736832627018,4.1607,3172.7,3172.1,0.4519]
[1736832627218,0.31534,3172.6,3172.1,0.4519]
[1736832627518,0.31535,3172.5,3172.1,0.4519]
[1736832631810,0.31536,3172.4,3172.1,0.4519]
[1736832632321,4.45653458,3172.7,3172.1,0.4519]
[1736832632522,0.31535,3172.5,3172.1,0.4519]
[1736832633816,3.52315,3172.5,3172.1,0.4519]
[1736832634023,3.2078,3172.5,3172.1,0.4519]
[1736832634520,3.52315,3172.5,3172.1,0.76729]
[1736832636924,3.52315,3172.5,3172.2,0.4592]
[1736832637226,0.31535,3172.5,3172.2,0.4592]
[1736832638525,0.31535,3172.5,3172.2,0.77458]
[1736832638725,0.31535,3172.5,3172.2,0.4592]
[1736832639122,4.45653458,3172.7,3172.2,0.4592]
[1736832639424,0.31534,3172.6,3172.2,0.77457]
[1736832641025,0.31535,3172.5,3172.2,0.77457]
[1736832641222,0.31534,3172.6,3172.2,0.77457]
[1736832641422,4.45653458,3172.7,3172.2,0.77457]
[1736832641621,0.31535,3172.5,3172.2,0.77457]
[1736832641826,0.31534,3172.6,3172.2,0.77457]
[1736832642428,0.31535,3172.5,3172.2,0.77457]
[1736832642625,0.31534,3172.6,3172.2,0.77457]
[1736832643328,0.31534,3172.6,3172.2,0.4592]
[1736832644024,0.31534,3172.6,3172.3,0.79767]
[1736832645723,0.31534,3172.6,3172.3,0.4823]
[1736832646228,0.31534,3172.6,3172.3,0.79766]
[1736832647624,0.31534,3172.6,3172.3,0.4823]
[1736832647830,0.31534,3172.6,3172.4,0.31536]
[1736832648629,0.31534,3172.6,3172.3,0.79766]
[1736832650239,4.87155876,3172.7,3172.3,0.4823]
[1736832650436,3.2078,3172.7,3172.6,0.31534]
[1736832650840,3.2078,3172.7,3172.6,2.83614959]
[1736832652439,3.2078,3172.7,3172.6,3.78094959]
[1736832653336,0.2461,3173.1,3172.6,6.67340959]
[1736832653536,0.2461,3173.1,3172.9,0.3153]
[1736832653736,0.2461,3173.1,3173.0,0.4971]
[1736832653938,0.2461,3173.1,3173.0,0.9705]
[1736832654250,0.2461,3173.1,3173.0,1.2858]
[1736832654446,3.2078,3173.5,3173.0,0.9705]
[1736832654745,3.2078,3173.5,3173.4,0.31526]
[1736832654951,2.52080959,3174.4,3173.8,0.31521]
[1736832654952,3.50363458,3174.3,3173.8,0.31521]
[1736832655145,3.2078,3174.3,3173.9,1.45]
[1736832655555,3.2078,3174.3,3173.9,1.76521]
[1736832655852,3.2078,3174.3,3173.9,1.45]
[1736832656352,3.2078,3174.3,3173.9,1.7652]
[1736832656747,3.2078,3174.3,3174.0,0.3152]
[1736832657049,3.52297,3174.3,3173.9,1.7652]
[1736832657649,0.31519,3174.2,3173.9,0.9705]
[1736832658044,2.52080959,3174.1,3173.9,0.9705]
[1736832658448,0.31519,3174.2,3173.9,0.9705]
[1736832658649,0.31519,3174.1,3173.9,0.9705]
[1736832658851,3.2078,3174.3,3173.9,0.9705]
[1736832659050,0.31518,3174.2,3173.9,0.9705]
[1736832659753,3.2078,3174.3,3173.9,0.9705]
[1736832659955,0.31518,3174.2,3173.9,0.9705]
[1736832660749,0.31518,3174.2,3173.2,3.6651]
[1736832660750,2.52080959,3174.1,3173.2,3.6651]
[1736832660953,0.31524,3173.6,3173.4,0.495]
[1736832661158,0.31523,3173.7,3173.4,0.495]
[1736832661453,3.46267,3173.8,3173.4,0.495]
[1736832661655,0.31524,3173.6,3173.4,0.495]
[1736832665053,5.98347959,3173.8,3173.4,0.495]
[1736832665250,0.31529,3173.1,3172.7,0.31533]
[1736832665457,3.2078,3172.9,3172.2,1.239]
[1736832665661,0.31534,3172.7,3172.4,0.4768]
[1736832666158,3.46267,3172.9,3172.4,0.4768]
[1736832666362,5.98347959,3172.9,3172.2,1.239]
[1736832666560,0.31537,3172.3,3172.2,1.239]
[1736832666759,0.31536,3172.4,3172.2,1.239]
[1736832667264,0.31538,3172.2,3172.0,0.4527]
[1736832667662,0.31539,3172.1,3171.7,1.722]
[1736832667863,0.3154,3172.0,3171.8,0.4527]
[1736832670465,3.52319,3172.1,3171.8,0.4527]
[1736832670666,0.3154,3172.0,3171.8,0.4527]
[1736832670865,3.52319,3172.1,3171.8,0.4527]
[1736832671661,3.2078,3172.1,3171.8,0.4527]
[1736832672768,3.52319,3172.1,3171.8,0.4527]
[1736832673066,3.2078,3172.1,3171.8,0.4527]
[1736832673260,3.52319,3172.1,3171.8,0.4527]
[1736832673667,0.3154,3172.0,3171.8,0.4527]
[1736832673868,3.2078,3172.1,3171.8,0.4527]
[1736832674163,3.52319,3172.1,3171.8,0.4527]
[1736832675758,3.2078,3172.1,3171.8,0.4527]
[1736832676062,3.2078,3172.1,3171.8,0.76811]
[1736832676267,3.2078,3172.1,3171.8,0.4527]
[1736832676467,3.52319,3172.1,3171.8,0.4527]
[1736832676671,3.2078,3172.1,3171.8,0.4527]
[1736832676967,3.2078,3172.1,3171.8,0.76812]
[1736832677162,3.2078,3172.1,3171.8,0.4527]
[1736832678068,3.2078,3172.1,3171.9,2.83620959]
[1736832678272,3.2078,3172.1,3171.9,3.29870959]
[1736832679157,3.2078,3172.1,3171.9,2.98330959]
[1736832681061,3.2078,3172.1,3171.9,3.29871959]
[1736832681468,3.2078,3172.1,3171.9,2.98330959]
[1736832681973,0.31534,3172.6,3172.1,0.31538]
[1736832682168,0.31534,3172.6,3172.2,2.52080959]
[1736832682370,0.31534,3172.6,3172.3,0.4699]
[1736832682570,0.7412,3172.9,3172.3,0.9378]
[1736832682862,0.31535,3172.5,3172.3,0.9378]
[1736832683269,0.7412,3172.9,3172.3,0.9378]
[1736832683270,0.31536,3172.4,3172.3,0.9378]
[1736832683481,0.31536,3172.4,3171.9,6.50650959]
[1736832683482,0.31538,3172.2,3171.9,0.4625]
[1736832683968,0.31539,3172.1,3171.9,0.4625]
[1736832684679,0.31538,3172.2,3171.9,0.4625]
[1736832685172,0.3154,3172.1,3171.9,0.4625]
[1736832685374,0.3154,3172.1,3171.7,0.9378]
[1736832685375,0.3154,3172.1,3171.7,1.25323]
[1736832685566,0.31539,3172.1,3171.7,0.9378]
[1736832685769,0.3154,3172.0,3171.7,0.9378]
[1736832687579,3.2078,3172.2,3171.7,0.9378]
[1736832687770,0.31539,3172.1,3171.7,0.9378]
[1736832688876,0.3154,3172.0,3171.7,0.9378]
[1736832692776,0.31541,3171.9,3171.7,0.9378]
[1736832692975,0.31542,3171.8,3171.7,0.9378]
[1736832694175,2.52080959,3172.0,3170.9,3.2078]
[1736832694373,0.31546,3171.4,3171.3,0.4977]
[1736832694876,0.77894,3171.6,3171.3,0.4977]
[1736832695183,0.9555,3171.9,3171.5,2.52080959]
[1736832695184,3.52321,3171.9,3171.5,2.52080959]
[1736832695479,0.31542,3171.8,3171.6,0.9217]
[1736832695879,3.52321,3171.9,3171.6,0.9217]
[1736832696079,0.31542,3171.8,3171.6,0.9217]
[1736832696280,3.52321,3171.9,3171.6,0.9217]
[1736832696876,0.31543,3171.7,3171.6,0.4585]
[1736832700781,0.31543,3171.7,3171.3,1.30366]
[1736832700985,0.9774,3171.8,3171.4,0.4665]
[1736832701784,0.31543,3171.7,3171.4,0.4665]
[1736832702186,0.9774,3171.8,3171.4,0.4665]
[1736832702380,0.31545,3171.5,3171.4,0.4665]
[1736832703483,0.31544,3171.6,3171.4,0.4665]
[1736832704389,1.4612,3171.8,3171.4,0.4665]
[1736832704590,0.31543,3171.7,3171.4,0.4665]
[1736832705785,1.4612,3171.8,3169.6,4.88122471]
[1736832705786,3.2078,3171.5,3169.9,2.976]
[1736832705987,0.31548,3171.2,3171.1,0.9495]
[1736832706183,0.31547,3171.3,3171.1,0.9495]
[1736832706990,0.31548,3171.2,3171.1,0.4783]
[1736832707190,0.31548,3171.2,3171.0,0.4937]
[1736832707493,0.31549,3171.1,3171.0,0.4937]
[1736832710291,3.2078,3171.5,3171.0,0.4937]
[1736832710482,0.31548,3171.2,3171.0,0.4937]
[1736832711892,0.31546,3171.4,3171.1,2.83628959]
[1736832712197,3.2078,3171.5,3171.1,2.52080959]
[1736832712497,3.2078,3171.5,3171.3,0.31546]
[1736832712883,3.2078,3171.5,3171.2,0.31547]
[1736832713280,3.2078,3171.5,3171.1,2.52080959]
[1736832713482,3.2078,3171.5,3171.2,0.31547]
[1736832714685,3.2078,3171.5,3171.1,3.76080959]
[1736832714881,0.31546,3171.4,3171.1,3.76080959]
[1736832715481,0.31546,3171.4,3171.1,1.24]
[1736832715685,3.52325,3171.5,3171.1,1.24]
[1736832715885,3.52325,3171.5,3171.1,1.55549]
[1736832717388,0.31545,3171.5,3171.1,1.55549]
[1736832717598,0.31545,3171.5,3171.1,1.24]
[1736832717895,4.6345,3171.6,3171.1,1.24]
[1736832718197,0.31545,3171.5,3171.1,1.24]
[1736832718588,0.31546,3171.4,3171.1,1.24]
[1736832720398,0.31545,3171.5,3171.1,1.24]
[1736832720988,4.6345,3171.6,3171.1,1.24]
[1736832721297,0.31546,3171.4,3171.1,1.24]
[1736832725000,4.1525,3171.6,3171.1,1.24]
[1736832725200,0.31545,3171.5,3171.1,1.55549]
[1736832725498,0.31545,3171.5,3171.1,4.07629959]
[1736832727497,3.7018,3171.6,3171.1,3.76080959]
[1736832727696,3.52324,3171.6,3171.1,3.76080959]
[1736832727905,3.52324,3171.6,3171.1,4.07628959]
[1736832728199,0.31545,3171.5,3171.1,4.07628959]
[1736832728800,3.2078,3171.6,3171.1,3.76080959]
[1736832729102,3.2078,3171.6,3171.1,1.24]
[1736832729103,0.31548,3171.2,3171.1,1.24]
[1736832730405,0.31548,3171.2,3171.0,0.4937]
[1736832730808,0.31549,3171.1,3171.0,0.4937]
[1736832731505,0.31548,3171.2,3171.0,0.4937]
[1736832735397,0.31548,3171.2,3171.1,1.19456599]
[1736832735703,0.31547,3171.3,3171.1,1.19456599]
[1736832736205,0.25487,3171.4,3171.1,1.19456599]
[1736832736403,0.25487,3171.4,3171.3,1.19456599]
[1736832736707,3.2078,3171.6,3171.4,0.31545]
[1736832736903,3.2078,3171.6,3171.5,2.14796599]
[1736832737102,3.2078,3171.6,3171.5,2.60676599]
[1736832737303,3.2078,3171.6,3171.5,1.4122]
[1736832738103,3.2078,3171.6,3171.5,1.72765]
[1736832738709,0.31541,3171.9,3171.5,1.72765]
[1736832738907,3.91757,3172.0,3171.5,1.4122]
[1736832739500,3.91757,3172.0,3170.9,1.24]
[1736832739501,0.31548,3171.2,3170.9,1.24]
[1736832739809,0.31548,3171.2,3171.0,0.4929]
[1736832742099,0.31547,3171.3,3171.0,0.4929]
[1736832742811,0.25487,3171.4,3171.0,0.4929]
[1736832743008,0.31547,3171.3,3171.0,0.4929]
[1736832745515,0.31549,3171.1,3171.0,0.4929]
[1736832746616,0.25487,3171.4,3171.0,0.4929]
[1736832747017,0.31548,3171.2,3171.0,0.4929]
[1736832747724,0.57035,3171.2,3171.0,0.4929]
[1736832750426,0.25487,3171.2,3171.0,0.4929]
[1736832750725,0.57035,3171.2,3171.0,0.4929]
[1736832752027,0.25487,3171.2,3171.0,0.4929]
[1736832752728,0.57035,3171.2,3171.0,0.4929]
[1736832755124,0.25487,3171.2,3171.0,0.4929]
[1736832755432,0.57035,3171.2,3171.0,0.4929]
[1736832756126,0.25487,3171.2,3171.0,0.4929]
[1736832756328,0.57035,3171.2,3171.0,0.4929]
[1736832757323,0.25487,3171.1,3170.3,4.4468]
[1736832757529,4.1691,3171.0,3170.3,4.6402]
[1736832757732,0.31553,3170.7,3170.3,6.19476]
[1736832757939,0.31552,3170.8,3170.3,6.19476]
[1736832758124,4.1691,3171.0,3170.3,6.19476]
[1736832758331,0.31551,3170.9,3170.3,5.8792]
[1736832758526,0.31553,3170.8,3170.3,6.19476]
[1736832758830,0.31554,3170.6,3170.3,5.421]
[1736832759335,0.31555,3170.5,3170.3,3.7022]
[1736832759631,0.57044,3170.3,3169.9,4.9266]
[1736832759832,0.25487,3170.3,3170.1,0.4944]
[1736832760030,0.57044,3170.3,3170.1,0.4944]
[1736832761633,0.25487,3170.3,3170.1,0.4944]
[1736832761833,0.57044,3170.3,3170.1,0.4944]
[1736832762129,0.31558,3170.2,3170.1,0.4944]
[1736832764335,3.2078,3170.2,3169.9,0.4798]
[1736832764533,3.99578,3170.2,3169.9,0.9581]
[1736832765036,0.31559,3170.1,3169.9,0.9581]
[1736832765337,3.6802,3170.2,3169.9,0.4783]
[1736832765539,3.6802,3170.2,3169.6,1.7101]
[1736832765540,0.31561,3169.9,3169.6,1.7101]
[1736832765837,0.31561,3169.9,3169.7,0.4783]
[1736832767734,0.3156,3170.0,3169.7,0.4783]
[1736832768036,0.31561,3169.9,3169.7,0.4783]
[1736832768829,3.6802,3170.2,3169.5,1.24]
[1736832769040,0.31563,3169.7,3169.5,1.24]
[1736832769439,0.31563,3169.7,3169.4,0.4674]
[1736832769630,0.31563,3169.7,3169.4,0.9655]
[1736832769833,3.6944,3169.8,3169.4,0.9655]
[1736832770133,0.4866,3169.8,3169.4,1.28116]
[1736832770839,0.4866,3169.8,3169.4,0.9655]
[1736832774039,0.31563,3169.7,3169.4,2.2055]
[1736832774238,0.77293,3169.7,3169.4,2.2055]
[1736832774641,0.77293,3169.7,3169.4,0.9655]
[1736832775439,0.4573,3169.7,3169.4,0.4674]
[1736832775636,0.31567,3169.3,3169.2,0.4761]
[1736832776138,0.31565,3169.5,3169.2,0.4761]
[1736832776345,3.77826,3170.1,3169.6,0.31563]
[1736832776540,3.46267,3170.1,3169.7,3.01562458]
[1736832776845,0.31562,3169.8,3169.7,0.493]
[1736832777536,0.9628,3170.0,3169.5,1.24]
[1736832778045,0.31563,3169.7,3169.6,0.493]
[1736832780136,3.52343,3169.7,3169.6,0.493]
[1736832780637,3.2078,3169.7,3169.1,3.2078]
[1736832780843,0.31566,3169.4,3169.2,0.4668]
[1736832781041,0.4843,3169.3,3169.2,0.4668]
[1736832784251,0.79997,3169.3,3169.2,0.4668]
[1736832785148,0.31566,3169.4,3169.2,0.4668]
[1736832785439,3.6626,3169.5,3169.2,0.78247]
[1736832785645,3.6626,3169.5,3169.3,0.4636]
[1736832785646,3.52345,3169.5,3169.3,0.4636]
[1736832785847,3.52345,3169.5,3169.3,0.9566]
[1736832786340,3.2078,3169.5,3169.3,0.9566]
[1736832786539,0.31563,3169.7,3169.3,1.27226]
[1736832786738,0.31564,3169.6,3169.3,1.27226]
[1736832787440,0.31566,3169.4,3169.3,0.9566]
[1736832787646,3.2078,3169.5,3169.2,0.4668]
[1736832787845,0.31567,3169.3,3169.2,0.4668]
[1736832788245,0.9566,3169.4,3168.8,0.4584]
[1736832788246,1.21147,3169.4,3168.8,0.4584]
[1736832788441,0.31569,3169.1,3169.0,0.4514]
[1736832788640,0.31568,3169.2,3169.0,0.4514]
[1736832788948,0.31569,3169.1,3169.0,0.4514]
[1736832789550,0.31569,3169.1,3168.7,0.31572]
[1736832789750,3.73409458,3169.4,3168.6,3.2078]
[1736832789949,0.31571,3169.0,3168.6,3.2078]
[1736832790246,0.31571,3169.0,3168.6,3.52353]
[1736832790452,0.31571,3168.9,3168.6,3.2078]
[1736832790749,0.80701,3168.9,3168.6,3.2078]
[1736832790942,0.4913,3168.9,3168.6,3.2078]
[1736832791447,0.80701,3168.9,3168.6,3.2078]
[1736832794151,0.31572,3168.8,3168.6,3.2078]
[1736832794354,0.4913,3168.9,3168.6,3.2078]
[1736832794949,0.31573,3168.7,3168.4,1.3856]
[1736832795149,0.31572,3168.8,3168.4,1.70135]
[1736832795549,0.31573,3168.7,3168.4,1.3856]
[1736832795755,0.31572,3168.8,3168.4,1.3856]
[1736832796361,0.31573,3168.7,3168.4,1.3856]
[1736832796554,3.6991,3168.9,3168.4,1.70135]
[1736832796555,4.01481,3168.9,3168.4,1.70135]
[1736832796749,0.31572,3168.8,3168.4,1.70135]
[1736832797054,3.6991,3168.9,3168.4,1.3856]
[1736832797355,0.31572,3168.8,3168.4,1.3856]
[1736832797658,0.31572,3168.8,3168.4,1.70135]
[1736832798151,0.31575,3168.5,3168.4,0.4514]
[1736832798351,0.79883,3168.7,3168.4,0.4514]
[1736832798546,0.31573,3168.7,3168.4,0.4514]
[1736832798759,0.31573,3168.7,3168.5,0.4662]
[1736832800056,0.4676,3168.8,3168.5,0.4662]
[1736832800256,0.31573,3168.7,3168.5,0.4662]
[1736832801657,0.4676,3168.8,3168.5,0.4662]
[1736832802455,0.31573,3168.7,3168.5,0.4662]
[1736832803252,0.78332,3168.8,3168.5,0.4662]
[1736832804060,0.4676,3168.8,3168.5,0.4662]
[1736832804257,0.31573,3168.7,3168.5,0.4662]
[1736832804561,0.4676,3168.8,3168.5,0.4662]
[1736832804751,0.78332,3168.8,3168.5,0.4662]
[1736832805148,0.4676,3168.8,3168.5,0.4662]
[1736832805556,0.78332,3168.8,3168.5,0.4662]
[1736832806052,0.31575,3168.5,3168.4,0.4514]
[1736832807364,0.31574,3168.6,3168.4,0.4514]
[1736832807759,0.31574,3168.6,3168.5,0.4901]
[1736832809159,0.31574,3168.6,3168.1,3.2078]
[1736832809160,3.2863992,3168.8,3167.7,6.39479857]
[1736832809355,3.52357,3168.3,3168.0,0.78059]
[1736832809862,3.2078,3168.3,3168.1,0.31578]
[1736832810062,3.2078,3168.3,3168.0,0.4648]
[1736832810361,0.31578,3168.2,3168.0,0.4648]
[1736832811266,3.2078,3168.3,3168.0,0.4648]
[1736832811564,0.31578,3168.2,3168.0,0.4648]
[1736832812261,0.31304239,3168.2,3168.0,0.4648]
[1736832812462,3.2078,3168.3,3168.0,0.4648]
[1736832812659,0.31578,3168.1,3168.0,0.4648]
[1736832828480,0.31578,3168.1,3167.7,1.51279252]
[1736832828481,0.31581,3167.9,3167.7,1.51279252]
[1736832828781,0.31581,3167.9,3167.8,0.9505]
[1736832829686,0.31581,3167.9,3167.8,0.4898]
[1736832832084,0.4887,3168.2,3167.8,0.4898]
[1736832832282,0.3158,3168.0,3167.8,0.4898]
[1736832832475,0.3158,3168.0,3167.9,0.4837]
[1736832833484,0.3158,3168.0,3167.9,1.68067252]
[1736832837079,0.31576,3168.4,3168.2,0.31577]
[1736832837277,0.31577,3168.3,3168.0,2.00496252]
[1736832838788,0.31577,3168.3,3168.0,1.68917252]
[1736832839087,0.31577,3168.3,3168.0,2.00496252]
[1736832839390,0.31578,3168.2,3168.0,0.4922]
[1736832841391,0.31576,3168.4,3168.0,3.33630082]
[1736832841587,0.57061,3168.6,3168.2,0.31577]
[1736832841793,0.31575,3168.5,3168.3,0.467]
[1736832842086,0.31575,3168.5,3168.4,0.4869]
[1736832842887,0.57061,3168.6,3168.4,0.4869]
[1736832843089,0.25487,3168.6,3168.5,0.4585]
[1736832844888,0.57061,3168.6,3168.5,0.4585]
[1736832845384,0.25487,3168.6,3168.5,0.4585]
[1736832846187,0.57061,3168.6,3168.5,0.4585]
[1736832846494,0.31574,3168.6,3168.5,0.4585]
[1736832849391,3.52353,3168.7,3168.5,0.4585]
[1736832849591,0.31574,3168.6,3168.5,0.4585]
[1736832849790,3.2078,3168.7,3168.3,1.707]
[1736832849994,0.31575,3168.4,3168.3,0.467]
[1736832851404,0.31579,3168.1,3167.9,1.24]
[1736832851584,0.31579,3168.1,3168.0,0.4985]
[1736832855600,3.99957462,3168.3,3167.8,0.9549]
[1736832855601,0.3158,3167.9,3167.8,0.9549]
[1736832855901,0.3158,3167.9,3167.8,1.4473]
[1736832856101,0.3158,3167.9,3167.8,0.4924]
[1736832856401,3.5236,3167.9,3167.8,0.4924]
[1736832856797,0.31579,3168.1,3167.8,0.80821]
[1736832857095,0.31579,3168.1,3167.9,0.4545]
[1736832857297,0.31578,3168.2,3168.0,0.4784]
[1736832857497,0.31578,3168.1,3168.0,0.4784]
[1736832860207,3.2078,3168.3,3168.0,0.4784]
[1736832860503,0.31578,3168.2,3168.0,0.79419]
[1736832861404,3.52357,3168.3,3168.1,0.31578]
[1736832861598,0.31577,3168.2,3168.0,0.79419]
[1736832862105,0.31576,3168.4,3168.2,0.31577]
[1736832862402,0.31576,3168.4,3168.3,0.4823]
[1736832862595,0.57062,3168.5,3168.3,0.4823]
[1736832862801,0.25487,3168.5,3168.3,0.4823]
[1736832862994,0.25487,3168.5,3168.4,0.4581]
[1736832863198,0.57062,3168.5,3168.4,0.4581]
[1736832864503,0.31575,3168.5,3168.4,0.4581]
[1736832865001,0.31574,3168.6,3168.4,0.4581]
[1736832866508,0.31575,3168.5,3168.4,0.4581]
[1736832868505,0.76497462,3168.6,3168.3,0.4823]
[1736832868811,0.31575,3168.4,3168.3,0.4823]
[1736832869008,0.76497462,3168.6,3168.0,0.4784]
[1736832869213,0.31577,3168.2,3168.1,0.4843]
[1736832870102,3.6975,3168.3,3168.0,0.4784]
[1736832870298,0.31578,3168.1,3168.0,0.4784]
[1736832870805,0.31578,3168.1,3167.4,2.52831082]
[1736832870806,0.31582,3167.8,3167.5,1.55584]
[1736832871005,0.31582,3167.8,3167.5,2.01064]
[1736832872208,0.31583,3167.7,3167.5,1.6948]
[1736832874217,0.31583,3167.7,3167.5,0.4548]
[1736832875620,0.31583,3167.6,3167.5,0.4548]
[1736832875807,0.31583,3167.7,3167.5,0.4548]